[Event "Early-Titled-Tuesday-Blitz-February-27-2024"]
[Site "Chess.com"]
[Date "2024.02.27"]
[Round "1"]
[White "claudyna16"]
[Black "Adar_07"]
[Result "0-1"]
[WhiteElo "2453"]
[BlackElo "2800"]
[TimeControl "180+1"]
[EndTime "8:05:00 PST"]
[Termination "Adar_07 won by resignation"]

1. c4 {[%clk 0:03:00.9]} 1... e5 {[%clk 0:02:59.6]} 2. g3 {[%clk 0:02:59.1]}
2... c6 {[%clk 0:02:58.8]} 3. Bg2 {[%clk 0:02:59.4]} 3... d5 {[%clk 0:02:58.2]}
4. cxd5 {[%clk 0:02:58]} 4... cxd5 {[%clk 0:02:59.1]} 5. Qb3 {[%clk 0:02:55.9]}
5... Nf6 {[%clk 0:02:55.6]} 6. Nc3 {[%clk 0:02:55.3]} 6... Nc6 {[%clk
0:02:18.8]} 7. Nxd5 {[%clk 0:02:54.4]} 7... Nd4 {[%clk 0:02:19.2]} 8. Nxf6+
{[%clk 0:02:53.7]} 8... Qxf6 {[%clk 0:02:10.8]} 9. Qd1 {[%clk 0:02:51.1]} 9...
Bf5 {[%clk 0:02:02.4]} 10. d3 {[%clk 0:02:50.9]} 10... Rc8 {[%clk 0:02:01.7]}
11. Kf1 {[%clk 0:02:51.2]} 11... Bc5 {[%clk 0:01:44.8]} 12. b3 {[%clk
0:02:46.9]} 12... O-O {[%clk 0:01:37.3]} 13. Bb2 {[%clk 0:02:36.8]} 13... Bg4
{[%clk 0:01:26.8]} 14. Nf3 {[%clk 0:02:18.9]} 14... Nxf3 {[%clk 0:01:17.7]} 15.
Bxf3 {[%clk 0:02:17.1]} 15... Bh3+ {[%clk 0:01:16.3]} 16. Kg1 {[%clk 0:02:16.9]}
16... g5 {[%clk 0:01:15.7]} 17. e3 {[%clk 0:02:16.6]} 17... Rfd8 {[%clk
0:01:08.1]} 18. Bg2 {[%clk 0:02:02.3]} 18... Bf5 {[%clk 0:00:58.2]} 19. Bf1
{[%clk 0:01:53.9]} 19... Be4 {[%clk 0:00:48.5]} 20. Qd2 {[%clk 0:01:41.2]} 20...
Qf3 {[%clk 0:00:41.3]} 21. dxe4 {[%clk 0:01:20.4]} 21... Rxd2 {[%clk 0:00:42.2]}
0-1

[Event "Early-Titled-Tuesday-Blitz-February-27-2024"]
[Site "Chess.com"]
[Date "2024.02.27"]
[Round "1"]
[White "IM_ArthurDW08"]
[Black "Slovineanu"]
[Result "1-0"]
[WhiteElo "2823"]
[BlackElo "2462"]
[TimeControl "180+1"]
[EndTime "8:05:13 PST"]
[Termination "IM_ArthurDW08 won by resignation"]

1. e4 {[%clk 0:03:00.9]} 1... c6 {[%clk 0:02:01.3]} 2. Nf3 {[%clk 0:02:50.3]}
2... d5 {[%clk 0:02:00.6]} 3. d3 {[%clk 0:02:50.4]} 3... dxe4 {[%clk 0:01:58.4]}
4. dxe4 {[%clk 0:02:51.3]} 4... Qc7 {[%clk 0:01:58.4]} 5. Bc4 {[%clk 0:02:46.3]}
5... e5 {[%clk 0:01:53.2]} 6. O-O {[%clk 0:02:43.5]} 6... Be7 {[%clk 0:01:51.4]}
7. Ng5 {[%clk 0:02:39.9]} 7... Nh6 {[%clk 0:01:46.4]} 8. Qh5 {[%clk 0:02:34.2]}
8... O-O {[%clk 0:01:34.2]} 9. Nf3 {[%clk 0:02:29.4]} 9... Bg4 {[%clk
0:01:29.4]} 10. Qxe5 {[%clk 0:02:28.7]} 10... Bd6 {[%clk 0:01:22.6]} 11. Qg5
{[%clk 0:02:27.8]} 11... Bxf3 {[%clk 0:01:21.1]} 12. gxf3 {[%clk 0:02:28.7]}
12... Bxh2+ {[%clk 0:00:51.4]} 13. Kg2 {[%clk 0:02:28.5]} 13... Be5 {[%clk
0:00:43.2]} 14. Rh1 {[%clk 0:02:24.7]} 14... Kh8 {[%clk 0:00:38.8]} 15. f4
{[%clk 0:02:24.4]} 15... Bd4 {[%clk 0:00:19.9]} 16. c3 {[%clk 0:02:18.6]} 16...
Bb6 {[%clk 0:00:19.6]} 17. f5 {[%clk 0:02:17.4]} 17... Qe5 {[%clk 0:00:12]} 18.
Qh4 {[%clk 0:02:14.3]} 18... Nd7 {[%clk 0:00:10.1]} 19. Nd2 {[%clk 0:02:11.3]}
19... Nf6 {[%clk 0:00:07.9]} 20. Bd3 {[%clk 0:02:01.1]} 20... Rad8 {[%clk
0:00:07.3]} 21. Nf3 {[%clk 0:02:01.6]} 21... Qe7 {[%clk 0:00:04.1]} 22. e5
{[%clk 0:01:57.1]} 22... Rxd3 {[%clk 0:00:03.2]} 23. exf6 {[%clk 0:01:57.2]}
23... Qe2 {[%clk 0:00:01.8]} 24. fxg7+ {[%clk 0:01:57.6]} 24... Kg8 {[%clk
0:00:02.2]} 25. gxf8=Q+ {[%clk 0:01:57.8]} 25... Kxf8 {[%clk 0:00:02.7]} 26.
Bxh6+ {[%clk 0:01:58.2]} 26... Ke8 {[%clk 0:00:02.6]} 27. Rae1 {[%clk
0:01:58.3]} 1-0

[Event "Early-Titled-Tuesday-Blitz-February-27-2024"]
[Site "Chess.com"]
[Date "2024.02.27"]
[Round "1"]
[White "mishanick"]
[Black "SharapovEvgeny"]
[Result "1-0"]
[WhiteElo "3093"]
[BlackElo "2536"]
[TimeControl "180+1"]
[EndTime "8:05:21 PST"]
[Termination "mishanick won by resignation"]

1. d4 {[%clk 0:03:00.9]} 1... Nf6 {[%clk 0:02:59.6]} 2. c4 {[%clk 0:03:01.5]}
2... e6 {[%clk 0:02:59.7]} 3. Nc3 {[%clk 0:03:01.8]} 3... Bb4 {[%clk 0:02:59.5]}
4. e3 {[%clk 0:03:02.1]} 4... c5 {[%clk 0:02:59.2]} 5. Nf3 {[%clk 0:03:01.8]}
5... d6 {[%clk 0:02:59.3]} 6. Bd3 {[%clk 0:03:02.4]} 6... Nc6 {[%clk 0:02:59.2]}
7. Bd2 {[%clk 0:03:00.4]} 7... e5 {[%clk 0:02:59]} 8. d5 {[%clk 0:02:59.5]} 8...
Ne7 {[%clk 0:02:57.9]} 9. e4 {[%clk 0:02:57.7]} 9... O-O {[%clk 0:02:57.1]} 10.
h3 {[%clk 0:02:54.8]} 10... Bxc3 {[%clk 0:02:52.3]} 11. Bxc3 {[%clk 0:02:54.3]}
11... Ng6 {[%clk 0:02:50.7]} 12. g3 {[%clk 0:02:53.9]} 12... Ne8 {[%clk
0:02:49.1]} 13. Qc2 {[%clk 0:02:53.3]} 13... Rb8 {[%clk 0:02:46.7]} 14. O-O-O
{[%clk 0:02:48]} 14... a6 {[%clk 0:02:46.2]} 15. Rdg1 {[%clk 0:02:43.5]} 15...
b5 {[%clk 0:02:45.6]} 16. h4 {[%clk 0:02:44]} 16... bxc4 {[%clk 0:02:42.6]} 17.
Bxc4 {[%clk 0:02:43.9]} 17... h6 {[%clk 0:02:38.3]} 18. h5 {[%clk 0:02:43.4]}
18... Ne7 {[%clk 0:02:38]} 19. g4 {[%clk 0:02:41.6]} 19... f6 {[%clk 0:02:38]}
20. Nh4 {[%clk 0:02:42]} 20... Kh8 {[%clk 0:02:31.8]} 21. Nf5 {[%clk 0:02:40.9]}
21... Nc7 {[%clk 0:02:26.4]} 22. a4 {[%clk 0:02:31.4]} 22... Na8 {[%clk
0:02:23.5]} 23. Qd2 {[%clk 0:02:29.7]} 23... Kh7 {[%clk 0:02:17.2]} 24. Qe3
{[%clk 0:02:17.8]} 24... Nb6 {[%clk 0:02:14.1]} 25. Bb3 {[%clk 0:02:17.9]} 25...
Bd7 {[%clk 0:02:13.2]} 26. a5 {[%clk 0:02:12]} 26... Na4 {[%clk 0:02:10.7]} 27.
Bd2 {[%clk 0:02:12.6]} 27... c4 {[%clk 0:01:56.6]} 28. Bxa4 {[%clk 0:01:41.4]}
28... Bxa4 {[%clk 0:01:55.7]} 29. Nxg7 {[%clk 0:01:35.8]} 29... Kxg7 {[%clk
0:01:46.3]} 30. Qxh6+ {[%clk 0:01:36.2]} 30... Kf7 {[%clk 0:01:46.5]} 31. g5
{[%clk 0:01:37]} 31... fxg5 {[%clk 0:01:35.7]} 32. Rxg5 {[%clk 0:01:34.1]} 32...
Rg8 {[%clk 0:01:28.8]} 33. Qe6+ {[%clk 0:01:30.3]} 33... Kf8 {[%clk 0:01:28.6]}
34. Rhg1 {[%clk 0:01:30]} 34... Rxg5 {[%clk 0:01:23.5]} 35. Bxg5 {[%clk
0:01:30.9]} 1-0

[Event "Early-Titled-Tuesday-Blitz-February-27-2024"]
[Site "Chess.com"]
[Date "2024.02.27"]
[Round "1"]
[White "AlmasRakhmatullaev"]
[Black "lagunanivaria"]
[Result "1-0"]
[WhiteElo "2830"]
[BlackElo "2465"]
[TimeControl "180+1"]
[EndTime "8:05:22 PST"]
[Termination "AlmasRakhmatullaev won by resignation"]

1. e4 {[%clk 0:03:00.9]} 1... e5 {[%clk 0:02:59.5]} 2. Nf3 {[%clk 0:03:00.4]}
2... Nc6 {[%clk 0:03:00]} 3. Bc4 {[%clk 0:03:00.2]} 3... Nf6 {[%clk 0:02:59.6]}
4. Ng5 {[%clk 0:02:59.2]} 4... d5 {[%clk 0:03:00.1]} 5. exd5 {[%clk 0:03:00.1]}
5... Na5 {[%clk 0:03:00.8]} 6. Bb5+ {[%clk 0:03:00.8]} 6... c6 {[%clk
0:03:01.4]} 7. dxc6 {[%clk 0:03:01.7]} 7... bxc6 {[%clk 0:03:02.3]} 8. Bd3
{[%clk 0:03:02.2]} 8... Bc5 {[%clk 0:02:55.5]} 9. O-O {[%clk 0:02:56.6]} 9... h6
{[%clk 0:02:55.2]} 10. Ne4 {[%clk 0:02:56.3]} 10... Nxe4 {[%clk 0:02:53.7]} 11.
Bxe4 {[%clk 0:02:57.2]} 11... O-O {[%clk 0:02:54.1]} 12. d3 {[%clk 0:02:56.8]}
12... Rb8 {[%clk 0:02:51.6]} 13. c3 {[%clk 0:02:56.3]} 13... f5 {[%clk
0:02:29.1]} 14. Bf3 {[%clk 0:02:55.6]} 14... e4 {[%clk 0:01:36.7]} 15. Be2
{[%clk 0:02:53.2]} 15... Nb7 {[%clk 0:01:29.1]} 16. dxe4 {[%clk 0:02:51.7]}
16... fxe4 {[%clk 0:01:30]} 17. Qxd8 {[%clk 0:02:51.1]} 17... Rxd8 {[%clk
0:01:30.8]} 18. Nd2 {[%clk 0:02:49.3]} 18... e3 {[%clk 0:01:31.2]} 19. Ne4
{[%clk 0:02:47.9]} 19... exf2+ {[%clk 0:01:30.7]} 20. Kh1 {[%clk 0:02:48.1]}
20... Bf5 {[%clk 0:01:17]} 21. Nxc5 {[%clk 0:02:32.9]} 21... Nxc5 {[%clk
0:01:17]} 22. Rxf2 {[%clk 0:02:33.5]} 22... Bd3 {[%clk 0:01:17.6]} 23. Bf3
{[%clk 0:02:20.9]} 23... Be4 {[%clk 0:01:16.4]} 24. Be3 {[%clk 0:02:19.5]} 24...
Bxf3 {[%clk 0:01:16.3]} 25. Bxc5 {[%clk 0:02:14.7]} 25... Bd5 {[%clk 0:01:16]}
26. Bxa7 {[%clk 0:02:14.8]} 26... Ra8 {[%clk 0:01:16.6]} 27. Bb6 {[%clk
0:02:15.1]} 27... Rdb8 {[%clk 0:01:16.9]} 28. Bd4 {[%clk 0:02:13.9]} 28... Rxa2
{[%clk 0:01:15.9]} 29. Rxa2 {[%clk 0:02:11.4]} 29... Bxa2 {[%clk 0:01:16.8]} 30.
b4 {[%clk 0:02:12]} 30... Bd5 {[%clk 0:01:15.9]} 31. h3 {[%clk 0:02:12.7]} 31...
Re8 {[%clk 0:01:15.3]} 32. Kh2 {[%clk 0:02:12.7]} 32... Re1 {[%clk 0:01:13.9]}
33. Rf4 {[%clk 0:02:06.7]} 33... Re2 {[%clk 0:01:10.8]} 34. Rg4 {[%clk
0:02:06.4]} 34... Re7 {[%clk 0:01:04]} 35. c4 {[%clk 0:02:06.8]} 35... Be4
{[%clk 0:01:00.1]} 36. Bxg7 {[%clk 0:02:03.3]} 36... Kf7 {[%clk 0:00:51.1]} 37.
Bxh6 {[%clk 0:02:02.3]} 37... Bf5 {[%clk 0:00:51.7]} 38. Rg7+ {[%clk 0:02:01.7]}
38... Kf6 {[%clk 0:00:51.7]} 39. Rxe7 {[%clk 0:02:00.4]} 39... Kxe7 {[%clk
0:00:52.6]} 40. c5 {[%clk 0:02:00.8]} 40... Kf6 {[%clk 0:00:51.1]} 41. Bf4
{[%clk 0:02:00.9]} 41... Bd3 {[%clk 0:00:50.8]} 42. g4 {[%clk 0:02:01.4]} 42...
Ke6 {[%clk 0:00:51]} 43. Kg3 {[%clk 0:02:02.3]} 43... Kd5 {[%clk 0:00:51.9]} 44.
h4 {[%clk 0:02:02.4]} 44... Kc4 {[%clk 0:00:52.5]} 45. Bd2 {[%clk 0:02:02.6]}
45... Kb3 {[%clk 0:00:53.1]} 46. Kf4 {[%clk 0:02:02.9]} 46... Kc2 {[%clk
0:00:53.7]} 47. Be1 {[%clk 0:02:03.6]} 47... Kc1 {[%clk 0:00:54.1]} 48. h5
{[%clk 0:02:02.9]} 48... Kd1 {[%clk 0:00:54.6]} 49. Bh4 {[%clk 0:01:59.5]} 49...
Kc2 {[%clk 0:00:53.4]} 50. g5 {[%clk 0:01:59.7]} 1-0

[Event "Early-Titled-Tuesday-Blitz-February-27-2024"]
[Site "Chess.com"]
[Date "2024.02.27"]
[Round "1"]
[White "BursaBBSatranc"]
[Black "Arlo2024"]
[Result "1-0"]
[WhiteElo "2627"]
[BlackElo "2298"]
[TimeControl "180+1"]
[EndTime "8:05:22 PST"]
[Termination "BursaBBSatranc won by resignation"]

1. d4 {[%clk 0:03:00.9]} 1... Nf6 {[%clk 0:02:59.4]} 2. Bf4 {[%clk 0:03:01.6]}
2... c5 {[%clk 0:02:59.3]} 3. e3 {[%clk 0:03:02.1]} 3... cxd4 {[%clk 0:02:59]}
4. exd4 {[%clk 0:03:03]} 4... Qb6 {[%clk 0:02:59]} 5. Nc3 {[%clk 0:03:00.4]}
5... Qxb2 {[%clk 0:02:55.9]} 6. Nb5 {[%clk 0:02:55.8]} 6... Na6 {[%clk
0:02:41.7]} 7. a3 {[%clk 0:02:55.8]} 7... d6 {[%clk 0:02:10]} 8. Bc4 {[%clk
0:02:42.7]} 8... Bf5 {[%clk 0:02:07.1]} 9. Bb3 {[%clk 0:02:42.6]} 9... Rc8
{[%clk 0:01:10.5]} 10. Rb1 {[%clk 0:02:35.2]} 10... Bxc2 {[%clk 0:01:08.9]} 11.
Rxb2 {[%clk 0:02:35.2]} 11... Bxd1 {[%clk 0:01:09.2]} 12. Kxd1 {[%clk
0:02:24.6]} 12... Ne4 {[%clk 0:01:06.4]} 13. f3 {[%clk 0:02:15.1]} 13... Nc3+
{[%clk 0:01:06.2]} 14. Nxc3 {[%clk 0:02:15.3]} 14... Rxc3 {[%clk 0:01:06.6]} 15.
Ne2 {[%clk 0:02:04.2]} 15... Rc7 {[%clk 0:00:58.2]} 16. Ba4+ {[%clk 0:01:55.9]}
16... Kd8 {[%clk 0:00:55]} 17. Kd2 {[%clk 0:01:50.4]} 17... g5 {[%clk
0:00:55.5]} 18. Be3 {[%clk 0:01:37]} 18... Rg8 {[%clk 0:00:55.5]} 19. Rc1 {[%clk
0:01:34.5]} 19... g4 {[%clk 0:00:53.7]} 20. Rxc7 {[%clk 0:01:32]} 20... Nxc7
{[%clk 0:00:53.1]} 21. Rxb7 {[%clk 0:01:29.4]} 21... e6 {[%clk 0:00:47.8]} 22.
h4 {[%clk 0:01:19]} 22... gxf3 {[%clk 0:00:46.9]} 23. gxf3 {[%clk 0:01:19]}
23... Rg2 {[%clk 0:00:44.4]} 24. Bg5+ {[%clk 0:01:18.1]} 24... Rxg5 {[%clk
0:00:32.8]} 25. hxg5 {[%clk 0:01:17.9]} 1-0

[Event "Early-Titled-Tuesday-Blitz-February-27-2024"]
[Site "Chess.com"]
[Date "2024.02.27"]
[Round "1"]
[White "newauto"]
[Black "NMJeevanK"]
[Result "0-1"]
[WhiteElo "2214"]
[BlackElo "2594"]
[TimeControl "180+1"]
[EndTime "8:05:23 PST"]
[Termination "NMJeevanK won by resignation"]

1. d4 {[%clk 0:03:00.9]} 1... d5 {[%clk 0:02:58]} 2. Nf3 {[%clk 0:03:00.3]} 2...
Nf6 {[%clk 0:02:56.4]} 3. Bg5 {[%clk 0:03:00.6]} 3... e6 {[%clk 0:02:56.6]} 4.
e3 {[%clk 0:03:00.8]} 4... Be7 {[%clk 0:02:57.1]} 5. Nbd2 {[%clk 0:03:00.3]}
5... O-O {[%clk 0:02:57.7]} 6. Bd3 {[%clk 0:03:00.4]} 6... b6 {[%clk 0:02:56.6]}
7. O-O {[%clk 0:02:58.5]} 7... c5 {[%clk 0:02:56.8]} 8. c3 {[%clk 0:02:58.2]}
8... Nc6 {[%clk 0:02:56.2]} 9. Ne5 {[%clk 0:02:57.1]} 9... Nxe5 {[%clk
0:02:55.9]} 10. dxe5 {[%clk 0:02:58]} 10... Nd7 {[%clk 0:02:55]} 11. Bf4 {[%clk
0:02:58.1]} 11... f5 {[%clk 0:02:50.6]} 12. exf6 {[%clk 0:02:54.2]} 12... Nxf6
{[%clk 0:02:50.9]} 13. Nf3 {[%clk 0:02:51]} 13... Bd6 {[%clk 0:02:49.4]} 14. Ne5
{[%clk 0:02:49.7]} 14... Qc7 {[%clk 0:02:47.7]} 15. Nf3 {[%clk 0:02:26.6]} 15...
Bxf4 {[%clk 0:02:47.7]} 16. exf4 {[%clk 0:02:27.5]} 16... Qxf4 {[%clk 0:02:48]}
17. Re1 {[%clk 0:02:24.7]} 17... Ne4 {[%clk 0:02:31.7]} 18. Qc2 {[%clk
0:02:01.1]} 18... Bb7 {[%clk 0:02:30.9]} 19. Rad1 {[%clk 0:01:42.8]} 19... Rf6
{[%clk 0:02:29.8]} 20. Qa4 {[%clk 0:00:43.8]} 20... Rg6 {[%clk 0:02:05.6]} 21.
Be2 {[%clk 0:00:43.1]} 21... Rf8 {[%clk 0:01:45.8]} 22. g3 {[%clk 0:00:41.8]}
22... Nxg3 {[%clk 0:01:30.5]} 23. Qxf4 {[%clk 0:00:25.4]} 23... Nxe2+ {[%clk
0:01:29.8]} 24. Kf1 {[%clk 0:00:21.6]} 24... Nxf4 {[%clk 0:01:29.2]} 0-1

[Event "Early-Titled-Tuesday-Blitz-February-27-2024"]
[Site "Chess.com"]
[Date "2024.02.27"]
[Round "1"]
[White "sokidze"]
[Black "MasterKroket"]
[Result "1-0"]
[WhiteElo "2795"]
[BlackElo "2450"]
[TimeControl "180+1"]
[EndTime "8:05:26 PST"]
[Termination "sokidze won by resignation"]

1. d4 {[%clk 0:03:00.9]} 1... Nf6 {[%clk 0:02:46.3]} 2. c4 {[%clk 0:03:00.7]}
2... g6 {[%clk 0:02:46.7]} 3. Nf3 {[%clk 0:02:59.9]} 3... Bg7 {[%clk 0:02:47]}
4. g3 {[%clk 0:03:00]} 4... O-O {[%clk 0:02:47.3]} 5. Bg2 {[%clk 0:02:59.9]}
5... c6 {[%clk 0:02:47.8]} 6. O-O {[%clk 0:02:58.9]} 6... d5 {[%clk 0:02:48.3]}
7. cxd5 {[%clk 0:02:59.3]} 7... cxd5 {[%clk 0:02:48.1]} 8. Ne5 {[%clk
0:02:59.9]} 8... Nc6 {[%clk 0:02:47.9]} 9. Nc3 {[%clk 0:02:58.2]} 9... e6 {[%clk
0:02:37.5]} 10. Nxc6 {[%clk 0:02:58]} 10... bxc6 {[%clk 0:02:37.7]} 11. Bg5
{[%clk 0:02:58.7]} 11... Qd6 {[%clk 0:02:34]} 12. Rc1 {[%clk 0:02:46.4]} 12...
Nd7 {[%clk 0:02:33.6]} 13. a3 {[%clk 0:02:23]} 13... Rb8 {[%clk 0:02:29.2]} 14.
Qd2 {[%clk 0:02:13]} 14... c5 {[%clk 0:02:28.1]} 15. Bf4 {[%clk 0:02:09.8]}
15... e5 {[%clk 0:02:25.5]} 16. dxe5 {[%clk 0:02:08.3]} 16... Bxe5 {[%clk
0:02:24.5]} 17. Nxd5 {[%clk 0:01:52.2]} 17... Bxf4 {[%clk 0:02:19.1]} 18. gxf4
{[%clk 0:01:53.1]} 18... Nf6 {[%clk 0:02:12.5]} 19. Rfd1 {[%clk 0:01:43.6]}
19... Nxd5 {[%clk 0:02:04.7]} 20. Bxd5 {[%clk 0:01:36.1]} 20... Kg7 {[%clk
0:02:04.1]} 21. Qc3+ {[%clk 0:01:16.5]} 21... Qf6 {[%clk 0:02:03]} 22. Qxf6+
{[%clk 0:01:10.6]} 22... Kxf6 {[%clk 0:02:02.8]} 23. Rd2 {[%clk 0:01:11.3]}
23... Rb5 {[%clk 0:01:48.9]} 24. Bc6 {[%clk 0:00:57.3]} 24... Ra5 {[%clk
0:01:45.9]} 25. Rd5 {[%clk 0:00:57.2]} 25... Bg4 {[%clk 0:01:37.9]} 26. f3
{[%clk 0:00:54.7]} 26... Bh3 {[%clk 0:01:28.6]} 27. Rdxc5 {[%clk 0:00:50.2]}
27... Rxc5 {[%clk 0:01:28.6]} 28. Rxc5 {[%clk 0:00:51.1]} 28... Rd8 {[%clk
0:01:29.3]} 29. Bd5 {[%clk 0:00:49.6]} 29... Rd6 {[%clk 0:01:20.5]} 30. e4
{[%clk 0:00:47.3]} 30... Be6 {[%clk 0:01:17.6]} 31. e5+ {[%clk 0:00:46.8]} 1-0

[Event "Early-Titled-Tuesday-Blitz-February-27-2024"]
[Site "Chess.com"]
[Date "2024.02.27"]
[Round "1"]
[White "Capablanca_Oujda_2021"]
[Black "Genghis_K"]
[Result "0-1"]
[WhiteElo "2516"]
[BlackElo "2954"]
[TimeControl "180+1"]
[EndTime "8:05:27 PST"]
[Termination "Genghis_K won by resignation"]

1. e4 {[%clk 0:03:00.9]} 1... c5 {[%clk 0:02:56.7]} 2. Nf3 {[%clk 0:02:59.2]}
2... d6 {[%clk 0:02:56]} 3. d4 {[%clk 0:02:57.1]} 3... cxd4 {[%clk 0:02:56.9]}
4. Nxd4 {[%clk 0:02:57.3]} 4... Nf6 {[%clk 0:02:57.4]} 5. Nc3 {[%clk 0:02:56.9]}
5... a6 {[%clk 0:02:58.2]} 6. Bg5 {[%clk 0:02:56.3]} 6... e6 {[%clk 0:02:58.5]}
7. f4 {[%clk 0:02:55.9]} 7... h6 {[%clk 0:02:59.2]} 8. Bh4 {[%clk 0:02:55.4]}
8... Qb6 {[%clk 0:03:00]} 9. Qd2 {[%clk 0:02:54.5]} 9... Qxb2 {[%clk 0:03:00.2]}
10. Rb1 {[%clk 0:02:54.2]} 10... Qa3 {[%clk 0:03:01]} 11. f5 {[%clk 0:02:54.4]}
11... Be7 {[%clk 0:02:56.1]} 12. fxe6 {[%clk 0:02:52.3]} 12... Bxe6 {[%clk
0:02:55.9]} 13. Nxe6 {[%clk 0:02:37.6]} 13... fxe6 {[%clk 0:02:55.3]} 14. Bc4
{[%clk 0:02:37.6]} 14... d5 {[%clk 0:02:02.6]} 15. exd5 {[%clk 0:02:26.7]} 15...
exd5 {[%clk 0:02:01.7]} 16. Bxf6 {[%clk 0:02:17.4]} 16... dxc4 {[%clk
0:01:45.3]} 17. Bxg7 {[%clk 0:01:54]} 17... Rg8 {[%clk 0:01:32.6]} 18. Qxh6
{[%clk 0:01:48.6]} 18... Nc6 {[%clk 0:01:23.6]} 19. Qg6+ {[%clk 0:01:41.2]}
19... Kd8 {[%clk 0:01:19.5]} 20. O-O {[%clk 0:01:25.5]} 20... Qxc3 {[%clk
0:00:59.8]} 21. Rfd1+ {[%clk 0:00:54.8]} 21... Kc7 {[%clk 0:00:59.2]} 22. Qg3+
{[%clk 0:00:45.8]} 22... Qxg3 {[%clk 0:00:57.4]} 23. hxg3 {[%clk 0:00:45.1]}
23... Bc5+ {[%clk 0:00:55.6]} 0-1

[Event "Early-Titled-Tuesday-Blitz-February-27-2024"]
[Site "Chess.com"]
[Date "2024.02.27"]
[Round "1"]
[White "Zavgorodniy_Sergiy"]
[Black "arnash_bauyrzhan"]
[Result "1-0"]
[WhiteElo "2633"]
[BlackElo "2310"]
[TimeControl "180+1"]
[EndTime "8:05:32 PST"]
[Termination "Zavgorodniy_Sergiy won by resignation"]

1. d4 {[%clk 0:03:00.9]} 1... d5 {[%clk 0:02:57.6]} 2. c4 {[%clk 0:03:00.4]}
2... e6 {[%clk 0:02:57.5]} 3. Nf3 {[%clk 0:02:59.9]} 3... Nf6 {[%clk 0:02:57.4]}
4. e3 {[%clk 0:03:00.1]} 4... Be7 {[%clk 0:02:57.3]} 5. Nbd2 {[%clk 0:03:00.2]}
5... O-O {[%clk 0:02:57.3]} 6. Bd3 {[%clk 0:03:00.5]} 6... b6 {[%clk 0:02:57.5]}
7. O-O {[%clk 0:03:00.2]} 7... Bb7 {[%clk 0:02:57.7]} 8. Qe2 {[%clk 0:03:00.6]}
8... dxc4 {[%clk 0:02:50]} 9. Nxc4 {[%clk 0:03:00.3]} 9... Ne4 {[%clk
0:02:49.3]} 10. Rd1 {[%clk 0:02:56.8]} 10... Nd7 {[%clk 0:02:48]} 11. b3 {[%clk
0:02:55.4]} 11... Qe8 {[%clk 0:02:32.3]} 12. Bb2 {[%clk 0:02:53.4]} 12... c5
{[%clk 0:02:30.3]} 13. Rac1 {[%clk 0:02:51.8]} 13... Rc8 {[%clk 0:02:25.4]} 14.
dxc5 {[%clk 0:02:45.2]} 14... Ndxc5 {[%clk 0:02:23.8]} 15. Bb1 {[%clk
0:02:44.8]} 15... Rd8 {[%clk 0:02:05.5]} 16. Rxd8 {[%clk 0:02:42.9]} 16... Qxd8
{[%clk 0:02:05.4]} 17. Rd1 {[%clk 0:02:43.8]} 17... Qa8 {[%clk 0:02:03.2]} 18.
Nd4 {[%clk 0:02:43.4]} 18... Bf6 {[%clk 0:02:00]} 19. f3 {[%clk 0:02:43.2]}
19... Ng5 {[%clk 0:01:47.5]} 20. h4 {[%clk 0:02:39.9]} 20... Bxd4 {[%clk
0:01:36.6]} 21. exd4 {[%clk 0:02:26]} 21... Bxf3 {[%clk 0:01:07.4]} 22. gxf3
{[%clk 0:02:20.7]} 22... Nxf3+ {[%clk 0:01:06.3]} 23. Kf2 {[%clk 0:02:14.4]}
23... Nxh4 {[%clk 0:00:56.1]} 24. dxc5 {[%clk 0:02:11.3]} 24... Qg2+ {[%clk
0:00:50.8]} 25. Ke3 {[%clk 0:02:11.1]} 25... Qg3+ {[%clk 0:00:39.8]} 26. Kd2
{[%clk 0:02:07.7]} 26... Rd8+ {[%clk 0:00:32.2]} 27. Bd3 {[%clk 0:02:07.2]}
27... Qf4+ {[%clk 0:00:14.4]} 28. Kc2 {[%clk 0:02:05.1]} 28... Rc8 {[%clk
0:00:10.5]} 29. cxb6 {[%clk 0:02:00.4]} 29... axb6 {[%clk 0:00:10.1]} 30. Kb1
{[%clk 0:01:56.9]} 30... b5 {[%clk 0:00:09]} 31. Nd6 {[%clk 0:01:53.5]} 1-0

[Event "Early-Titled-Tuesday-Blitz-February-27-2024"]
[Site "Chess.com"]
[Date "2024.02.27"]
[Round "1"]
[White "Marcin"]
[Black "MatthewG-p4p"]
[Result "0-1"]
[WhiteElo "2498"]
[BlackElo "2891"]
[TimeControl "180+1"]
[EndTime "8:05:35 PST"]
[Termination "MatthewG-p4p won by checkmate"]

1. Nf3 {[%clk 0:03:00.9]} 1... c5 {[%clk 0:02:55.6]} 2. e4 {[%clk 0:03:00.2]}
2... g6 {[%clk 0:02:55.2]} 3. d4 {[%clk 0:02:59.9]} 3... cxd4 {[%clk 0:02:54.5]}
4. Nxd4 {[%clk 0:03:00.8]} 4... Bg7 {[%clk 0:02:54]} 5. c4 {[%clk 0:03:01.5]}
5... Nc6 {[%clk 0:02:54]} 6. Be3 {[%clk 0:03:01]} 6... Nf6 {[%clk 0:02:53.8]} 7.
Nc3 {[%clk 0:03:01.7]} 7... O-O {[%clk 0:02:53.8]} 8. f3 {[%clk 0:03:01]} 8...
d6 {[%clk 0:02:46.5]} 9. Be2 {[%clk 0:03:01]} 9... Bd7 {[%clk 0:02:45.7]} 10.
O-O {[%clk 0:03:00.9]} 10... Nxd4 {[%clk 0:02:45.7]} 11. Bxd4 {[%clk 0:03:01.1]}
11... a5 {[%clk 0:02:46.6]} 12. Rc1 {[%clk 0:03:00.2]} 12... Bc6 {[%clk
0:02:46.6]} 13. b3 {[%clk 0:03:00.2]} 13... Nd7 {[%clk 0:02:44.9]} 14. Bxg7
{[%clk 0:02:56.6]} 14... Kxg7 {[%clk 0:02:45.8]} 15. Qd4+ {[%clk 0:02:55.5]}
15... Kg8 {[%clk 0:02:45.5]} 16. Rfd1 {[%clk 0:02:55.5]} 16... Qb6 {[%clk
0:02:45.1]} 17. Kf2 {[%clk 0:02:48.2]} 17... Rfc8 {[%clk 0:02:42.3]} 18. Ke3
{[%clk 0:02:46.2]} 18... Nc5 {[%clk 0:02:33]} 19. h4 {[%clk 0:02:44.4]} 19... e5
{[%clk 0:02:31.9]} 20. Qxd6 {[%clk 0:02:29.1]} 20... Qa7 {[%clk 0:00:50.7]} 21.
Qxe5 {[%clk 0:02:11.9]} 21... Nxb3+ {[%clk 0:00:35.3]} 22. Kf4 {[%clk
0:02:08.9]} 22... Nxc1 {[%clk 0:00:34.6]} 23. Kg5 {[%clk 0:01:42.3]} 23... Qe3+
{[%clk 0:00:26.5]} 24. f4 {[%clk 0:01:41.5]} 24... Nxe2 {[%clk 0:00:21.4]} 25.
Nxe2 {[%clk 0:01:38.1]} 25... Qxe2 {[%clk 0:00:20.9]} 26. g4 {[%clk 0:01:38.6]}
26... Re8 {[%clk 0:00:14.8]} 27. Qa1 {[%clk 0:01:31.8]} 27... Qxe4 {[%clk
0:00:12.1]} 28. Kh6 {[%clk 0:01:31.9]} 28... Qxf4+ {[%clk 0:00:12.3]} 29. g5
{[%clk 0:01:31.9]} 29... Qxh4# {[%clk 0:00:12.4]} 0-1